bitfinex-derivatives/quotes_BNBF0:USTF0_20250709
["timestamp","ask_amount","ask_price","bid_price","bid_amount"]
[1752092567609,3.3457195,670.32,669.68,2.693]
[1752092567906,3.3457195,670.38,669.68,2.693]
[1752092568110,3.3457195,670.36,669.68,2.693]
[1752092569613,3.3457195,670.35,669.68,2.693]
[1752092570910,3.3457195,670.34,669.68,2.693]
[1752092571614,3.3457195,670.33,669.68,2.693]
[1752092571913,3.3457195,670.34,669.68,2.693]
[1752092572111,3.3457195,670.33,669.68,2.693]
[1752092572514,3.3457195,670.31,669.68,2.693]
[1752092572710,3.3457195,670.33,669.68,2.693]
[1752092573411,3.3457195,670.32,669.68,2.693]
[1752092574011,3.3457195,670.31,669.68,2.693]
[1752092574816,3.3457195,670.3,669.68,2.693]
[1752092575116,3.3457195,670.42,669.68,2.693]
[1752092575418,3.3457195,670.41,669.68,2.693]
[1752092575711,3.3457195,670.42,669.68,2.693]
[1752092576316,3.3457195,670.41,669.68,2.693]
[1752092577520,3.3457195,670.44,669.68,2.693]
[1752092577920,3.3457195,670.45,669.68,2.693]
[1752092578120,3.3457195,670.38,669.68,2.693]
[1752092578318,3.3457195,670.32,669.68,2.693]
[1752092578716,3.3457195,670.29,669.68,2.693]
[1752092578921,3.3457195,670.28,669.68,2.693]
[1752092579220,3.3457195,670.22,669.68,2.693]
[1752092580521,3.3457195,670.2,669.68,2.693]
[1752092581617,3.3457195,670.21,669.68,2.693]
[1752092582823,5.57619918,670.79,669.68,2.693]
[1752092582824,3.3457195,670.22,669.68,2.693]
[1752092583323,3.3457195,670.23,669.68,2.693]
[1752092583521,3.3457195,670.22,669.68,2.693]
[1752092584221,3.3457195,670.21,669.68,2.693]
[1752092585724,3.3457195,670.19,669.68,2.693]
[1752092586323,3.3457195,670.16,669.68,2.693]
[1752092587721,3.3457195,670.19,669.68,2.693]
[1752092588822,3.3457195,670.16,669.68,2.693]
[1752092589625,3.3457195,670.17,669.68,2.693]
[1752092589929,3.3457195,670.18,669.68,2.693]
[1752092591027,3.3457195,670.18,669.22,1.66521398]
[1752092591327,3.3457195,670.19,669.23,1.5347782]
[1752092591530,3.3457195,670.18,669.24,1.5347782]
[1752092591731,3.3457195,670.18,669.25,1.5347782]
[1752092591932,3.3457195,670.18,669.26,1.5347782]
[1752092592133,3.3457195,670.18,669.27,1.5347782]
[1752092592329,3.3457195,670.2,669.28,1.5347782]
[1752092592632,3.3457195,670.2,669.29,1.5347782]
[1752092592830,3.3457195,670.22,669.3,1.5347782]
[1752092593035,3.3457195,670.22,669.31,1.5347782]
[1752092593334,3.3457195,670.22,669.32,1.5347782]
[1752092593533,3.3457195,670.22,669.33,1.5347782]
[1752092593731,3.3457195,670.27,669.34,1.5347782]
[1752092593935,3.3457195,670.27,669.35,1.5347782]
[1752092594131,3.3457195,670.27,669.36,1.5347782]
[1752092594333,3.3457195,670.27,669.37,1.5347782]
[1752092594532,3.3457195,670.27,669.38,1.5347782]
[1752092594834,3.3457195,670.27,669.39,1.53401072]
[1752092595035,3.3457195,670.27,669.4,1.53401072]
[1752092595235,3.3457195,670.36,669.41,1.53401072]
[1752092595531,5.57619918,671.06,669.42,1.53401072]
[1752092595532,3.3457195,670.35,669.42,1.53401072]
[1752092595731,3.3457195,670.35,669.43,1.53401072]
[1752092595935,3.3457195,670.35,669.44,1.53401072]
[1752092596136,3.3457195,670.35,669.45,1.53401072]
[1752092596435,3.3457195,670.35,669.46,1.53401072]
[1752092596635,3.3457195,670.35,669.47,1.53401072]
[1752092596832,3.3457195,670.35,669.48,1.53401072]
[1752092597032,3.3457195,670.35,669.49,1.53401072]
[1752092597335,3.3457195,670.35,669.5,1.53401072]
[1752092597535,3.3457195,670.35,669.51,1.53401072]
[1752092597733,3.3457195,670.35,669.52,1.53401072]
[1752092597936,3.3457195,670.35,669.37,2.995]
[1752092598133,3.3457195,670.37,669.38,1.53388234]
[1752092598331,3.3457195,670.37,669.39,1.53388234]
[1752092598538,3.3457195,670.34,669.4,1.53388234]
[1752092598737,3.3457195,670.34,669.41,1.53388234]
[1752092598937,3.3457195,670.33,669.42,1.53388234]
[1752092599134,3.3457195,670.33,669.43,1.53388234]
[1752092599339,3.3457195,670.33,669.44,1.53388234]
[1752092599536,3.3457195,670.28,669.45,1.53388234]
[1752092599740,3.3457195,670.28,669.46,1.53388234]
[1752092600039,3.3457195,670.22,669.47,1.53388234]
[1752092600239,3.3457195,670.23,669.48,1.53388234]
[1752092600436,3.3457195,670.23,669.49,1.53388234]
[1752092600636,3.3457195,670.23,669.5,1.53388234]
[1752092600838,3.3457195,670.22,669.51,1.53388234]
[1752092601036,3.3457195,670.22,669.52,1.53388234]
[1752092601240,3.3457195,670.22,669.53,1.53388234]
[1752092601537,3.3457195,670.22,669.54,1.53388234]
[1752092601740,3.3457195,670.22,669.37,2.995]
[1752092602041,3.3457195,670.23,669.38,1.53370929]
[1752092602236,3.3457195,670.23,669.39,1.53370929]
[1752092602437,3.3457195,670.2,669.4,1.53370929]
[1752092602638,3.3457195,670.2,669.41,1.53370929]
[1752092602836,3.3457195,670.21,669.42,1.53370929]
[1752092603040,3.3457195,670.21,669.43,1.53370929]
[1752092603242,3.3457195,670.21,669.44,1.53370929]
[1752092603538,3.3457195,670.21,669.45,1.53370929]
[1752092603841,3.3457195,670.21,669.46,1.53370929]
[1752092604038,3.3457195,670.21,669.47,1.53370929]
[1752092604241,3.3457195,670.21,669.48,1.53370929]
[1752092604541,3.3457195,670.21,669.49,1.53370929]
[1752092604740,3.3457195,670.17,669.37,2.995]
[1752092604939,3.3457195,670.17,669.38,1.53439831]
[1752092605142,3.3457195,670.17,669.39,1.53439831]
[1752092605342,5.57619918,670.8,669.4,1.53439831]
[1752092605343,3.3457195,670.18,669.4,1.53439831]
[1752092605542,3.3457195,670.18,669.41,1.53439831]
[1752092605739,3.3457195,670.18,669.42,1.53439831]
[1752092605938,3.3457195,670.18,669.43,1.53439831]
[1752092606142,3.3457195,670.18,669.44,1.53439831]
[1752092606340,3.3457195,670.18,669.45,1.53439831]
[1752092606644,3.3457195,670.18,669.46,1.53439831]
[1752092606841,3.3457195,670.18,669.47,1.53439831]
[1752092607038,3.3457195,670.18,669.37,2.995]
[1752092607241,3.3457195,670.17,669.38,1.53417801]
[1752092607441,3.3457195,670.17,669.39,1.53417801]
[1752092607738,3.3457195,670.18,669.4,1.53417801]
[1752092607943,3.3457195,670.15,669.41,1.53417801]
[1752092608244,3.3457195,670.19,669.37,2.995]
[1752092609249,3.3457195,670.18,669.37,2.995]
[1752092609549,3.3457195,670.17,669.37,2.995]
[1752092610554,3.3457195,670.01,669.37,2.995]
[1752092610848,3.3457195,669.82,669.37,2.995]
[1752092611252,3.3457195,669.87,669.37,2.995]
[1752092611452,3.3457195,669.88,669.37,2.995]
[1752092611852,3.3457195,669.85,669.37,2.995]
[1752092612248,3.3457195,669.88,669.37,2.995]
[1752092613354,3.3457195,669.83,669.37,2.995]
[1752092613649,3.3457195,669.84,669.37,2.995]
[1752092613951,3.3457195,669.83,669.37,2.995]
[1752092614354,3.3457195,669.87,669.37,2.995]
[1752092614851,3.3457195,670.06,669.37,2.995]
[1752092615051,3.3457195,670.07,669.37,2.995]
[1752092615453,3.3457195,670.1,669.37,2.995]
[1752092615752,3.3457195,670.01,669.37,2.995]
[1752092615952,3.3457195,669.99,669.37,2.995]
[1752092616356,5.57619918,670.83,669.37,2.995]
[1752092616357,3.3457195,670.03,669.37,2.995]
[1752092616856,3.3457195,670.12,669.37,2.995]
[1752092617256,3.3457195,670.14,669.37,2.995]
[1752092617453,3.3457195,670.15,669.37,2.995]
[1752092617656,3.3457195,670.13,669.37,2.995]
[1752092618353,3.3457195,670.15,669.37,2.995]
[1752092618653,3.3457195,670.14,669.37,2.995]
[1752092619459,3.3457195,670.16,669.37,2.995]
[1752092619959,3.3457195,670.13,669.37,2.995]
[1752092620256,3.3457195,670.1,669.37,2.995]
[1752092620655,3.3457195,670.2,669.37,2.995]
[1752092620856,3.3457195,670.23,669.37,2.995]
[1752092621361,3.3457195,670.37,669.37,2.995]
[1752092621657,3.3457195,670.36,669.37,2.995]
[1752092622962,3.3457195,670.35,669.37,2.995]
[1752092623360,3.3457195,670.36,669.37,2.995]
[1752092623957,3.3457195,670.35,669.37,2.995]
[1752092624259,3.3457195,670.36,669.37,2.995]
[1752092626465,3.3457195,670.3,669.37,2.995]
[1752092627365,3.3457195,670.29,669.37,2.995]
[1752092628069,3.3457195,670.23,669.37,2.995]
[1752092628469,3.3457195,670.24,669.37,2.995]
[1752092630164,3.3457195,670.19,669.37,2.995]
[1752092630365,3.3457195,670.17,669.37,2.995]
[1752092630668,3.3457195,670.16,669.37,2.995]
[1752092632465,3.3457195,670.15,669.37,2.995]
[1752092632669,3.3457195,670.14,669.37,2.995]
[1752092632869,3.3457195,670.15,669.37,2.995]
[1752092634580,3.3457195,670.07,668.88,1.6616994]
[1752092634767,3.3457195,670.07,668.89,1.52640401]
[1752092635072,3.3457195,670.07,668.9,1.52640401]
[1752092635270,3.3457195,670.13,668.91,1.52640401]
[1752092635474,3.3457195,670.12,668.92,1.52640401]
[1752092635771,3.3457195,670.12,668.93,1.52640401]
[1752092635972,3.3457195,670.12,668.94,1.52640401]
[1752092636170,3.3457195,670.12,668.95,1.52640401]
[1752092636473,3.3457195,670.11,668.96,1.52640401]
[1752092636673,3.3457195,670.11,668.97,1.52640401]
[1752092636870,3.3457195,670.1,668.98,1.52640401]
[1752092637074,3.3457195,670.1,668.99,1.52640401]
[1752092637372,3.3457195,670.1,669.0,1.52640401]
[1752092637570,3.3457195,670.09,669.01,1.52640401]
[1752092637774,3.3457195,670.1,669.02,1.52640401]
[1752092638075,3.3457195,670.14,669.03,1.52640401]
[1752092638274,3.3457195,670.14,669.04,1.52640401]
[1752092638473,3.3457195,670.14,669.03,2.313]
[1752092638474,3.3457195,670.14,669.05,1.52640401]
[1752092638671,3.3457195,670.14,669.06,1.52640401]
[1752092638871,3.3457195,670.14,669.07,1.52640401]
[1752092639075,3.3457195,670.14,669.08,1.52640401]
[1752092639276,3.3457195,670.14,669.09,1.52712562]
[1752092639472,3.3457195,670.14,669.1,1.52712562]
[1752092639675,3.3457195,670.14,669.11,1.52712562]
[1752092639879,3.3457195,670.14,669.12,1.52712562]
[1752092640077,3.3457195,670.14,669.13,1.52712562]
[1752092640277,3.3457195,670.14,669.03,2.313]
[1752092640574,3.3457195,670.14,669.04,1.52717613]
[1752092640876,3.3457195,670.14,669.05,1.52717613]
[1752092641176,3.3457195,670.14,669.06,1.52717613]
[1752092641371,3.3457195,670.15,669.07,1.52717613]
[1752092641573,3.3457195,670.15,669.08,1.52717613]
[1752092641772,3.3457195,670.15,669.03,2.313]
[1752092641773,3.3457195,670.15,669.09,1.52717613]
[1752092641974,3.3457195,670.15,669.1,1.52717613]
[1752092642176,3.3457195,670.15,669.03,2.313]
[1752092642177,3.3457195,670.15,669.11,1.52717613]
[1752092642374,3.3457195,670.15,669.12,1.52717613]
[1752092642573,3.3457195,670.14,669.13,1.52717613]
[1752092642774,3.3457195,670.16,669.03,2.313]
[1752092642972,3.3457195,670.16,669.04,1.52738768]
[1752092643173,3.3457195,670.16,669.05,1.52738768]
[1752092643378,3.3457195,670.15,669.06,1.52738768]
[1752092643577,3.3457195,670.15,669.07,1.52738768]
[1752092643777,3.3457195,670.15,669.08,1.52738768]
[1752092643978,3.3457195,670.15,669.09,1.52738768]
[1752092644177,0.2598935,669.93,669.1,1.52738768]
[1752092644377,0.2598935,669.93,669.11,1.52738768]
[1752092644575,0.2598935,669.93,669.12,1.52738768]
[1752092644879,0.2598935,669.93,669.03,2.313]
[1752092645079,0.2598935,669.93,669.04,1.52753044]
[1752092645279,0.2598935,669.93,669.05,1.52753044]
[1752092645478,0.2598935,669.93,669.06,1.52753044]
[1752092645681,0.2598935,669.93,669.07,1.52753044]
[1752092645977,0.2598935,669.93,669.08,1.52753044]
[1752092646280,0.2598935,669.93,669.09,1.52753044]
[1752092646477,0.2598935,669.93,669.1,1.52753044]
[1752092646681,0.2598935,669.93,669.11,1.52753044]
[1752092646883,0.2598935,669.93,669.12,1.52753044]
[1752092647081,0.2598935,669.93,669.13,1.52753044]
[1752092647381,0.2598935,669.93,669.14,1.52753044]
[1752092647677,0.2598935,669.93,669.03,2.313]
[1752092647678,0.2598935,669.93,669.15,1.52753044]
[1752092647883,0.2598935,669.93,669.16,1.52753044]
[1752092648083,0.2598935,669.93,669.17,1.52753044]
[1752092648284,0.2598935,669.93,669.03,2.313]
[1752092648484,0.2598935,669.93,669.04,1.52813209]
[1752092648681,0.2598935,669.93,669.05,1.52813209]
[1752092648881,0.2598935,669.93,669.06,1.52813209]
[1752092649180,0.2598935,669.93,669.07,1.52813209]
[1752092649384,0.2598935,669.93,669.08,1.52813209]
[1752092649583,0.2598935,669.93,669.09,1.52813209]
[1752092649882,0.2598935,669.93,669.1,1.52813209]
[1752092650084,0.2598935,669.93,669.11,1.52813209]
[1752092650381,0.2598935,669.93,669.03,2.313]
[1752092650581,0.2598935,669.93,669.04,1.52877054]
[1752092650783,0.2598935,669.93,669.05,1.52877054]
[1752092650985,0.2598935,669.93,669.03,2.313]
[1752092651689,0.2598935,669.93,669.04,1.52894419]
[1752092651983,0.2598935,669.93,669.03,2.313]
[1752092657991,0.2598935,669.93,669.04,1.52990156]
[1752092658191,0.2598935,669.93,669.05,1.52990156]
[1752092658494,0.2598935,669.93,669.06,1.52990156]
[1752092658690,0.2598935,669.93,669.03,2.313]
[1752092658890,0.2598935,669.93,669.04,1.53043622]
[1752092659093,0.2598935,669.93,669.05,1.53043622]
[1752092659292,3.3457195,669.92,669.03,2.313]
[1752092659495,3.3457195,669.92,669.04,1.53082554]
[1752092659693,3.3457195,669.92,669.05,1.53082554]
[1752092659897,3.3457195,669.92,669.03,2.313]
[1752092660097,3.3457195,669.91,669.04,1.53084914]
[1752092660397,3.3457195,669.88,669.05,1.53084914]
[1752092660693,3.3457195,669.88,669.03,2.313]
[1752092660897,3.3457195,669.88,669.04,1.53151482]
[1752092661098,0.2598935,669.93,669.03,2.313]
[1752092661099,3.3457195,669.86,669.03,2.313]
[1752092661296,3.3457195,669.84,669.03,2.313]
[1752092661594,3.3457195,669.81,669.03,2.313]
[1752092662197,3.3457195,669.8,669.03,2.313]
[1752092662397,3.3457195,669.81,669.03,2.313]
[1752092662694,3.3457195,669.8,669.03,2.313]
[1752092662898,3.3457195,669.81,669.03,2.313]
[1752092663093,3.3457195,669.87,669.03,2.313]
[1752092663295,3.3457195,669.86,669.03,2.313]
[1752092663997,3.3457195,669.84,669.03,2.313]
[1752092664196,3.3457195,669.88,669.03,2.313]
[1752092665200,3.3457195,669.86,669.03,2.313]
[1752092666095,3.3457195,669.74,669.03,2.313]
[1752092666300,3.3457195,669.71,669.03,2.313]
[1752092666500,0.2598935,669.93,669.03,2.313]
[1752092666501,3.3457195,669.72,669.03,2.313]
[1752092667200,3.3457195,669.75,669.03,2.313]
[1752092667600,3.3457195,669.76,669.03,2.313]
[1752092667802,3.3457195,669.77,669.03,2.313]
[1752092668201,3.3457195,669.73,669.03,2.313]
[1752092668401,3.3457195,669.75,669.03,2.313]
[1752092671203,3.3457195,669.76,669.03,2.313]
[1752092671708,3.3457195,669.72,669.03,2.313]
[1752092672507,3.3457195,669.73,669.03,2.313]
[1752092673004,3.3457195,669.72,669.03,2.313]
[1752092673406,3.3457195,669.73,669.03,2.313]
[1752092674304,3.3457195,669.74,669.03,2.313]
[1752092675209,3.3457195,669.72,669.03,2.313]
[1752092675509,3.3457195,669.73,669.03,2.313]
[1752092675708,3.3457195,669.72,669.03,2.313]
[1752092677006,3.3457195,669.69,669.03,2.313]
[1752092677506,3.3457195,669.67,669.03,2.313]
[1752092677710,3.3457195,669.65,669.03,2.313]
[1752092677907,3.3457195,669.67,669.03,2.313]
[1752092678111,3.3457195,669.66,669.03,2.313]
[1752092678307,3.3457195,669.68,669.03,2.313]
[1752092679212,3.3457195,669.73,669.03,2.313]
[1752092679411,3.3457195,669.74,669.03,2.313]
[1752092679811,3.3457195,669.73,669.03,2.313]
[1752092680208,3.3457195,669.74,669.03,2.313]
[1752092681212,3.3457195,669.74,668.69,0.25997505]
[1752092681414,3.3457195,669.75,668.7,1.53153545]
[1752092681712,3.3457195,669.74,668.71,1.53153545]
[1752092681912,3.3457195,669.74,668.72,1.53153545]
[1752092682112,3.3457195,669.71,668.73,1.53153545]
[1752092682413,3.3457195,669.73,668.74,1.53153545]
[1752092682614,3.3457195,669.72,668.75,1.53153545]
[1752092682813,3.3457195,669.73,668.76,1.53153545]
[1752092683013,3.3457195,669.73,668.77,1.53153545]
[1752092683310,3.3457195,669.73,668.78,1.53153545]
[1752092683512,3.3457195,669.73,668.79,1.53153545]
[1752092683713,3.3457195,669.73,668.57,0.26004887]
[1752092684013,3.3457195,669.73,668.58,1.53003847]
[1752092684310,3.3457195,669.73,668.59,1.53003847]
[1752092684509,3.3457195,669.73,668.6,1.53003847]
[1752092684710,3.3457195,669.73,668.61,1.53003847]
[1752092684911,3.3457195,669.73,668.62,1.53003847]
[1752092685113,3.3457195,669.73,668.63,1.53003847]
[1752092685415,3.3457195,669.74,668.64,1.53003847]
[1752092685714,3.3457195,669.74,668.65,1.53003847]
[1752092685909,3.3457195,669.74,668.66,1.53003847]
[1752092686113,3.3457195,669.74,668.67,1.53003847]
[1752092686313,3.3457195,669.74,668.68,1.53003847]
[1752092686513,3.3457195,669.74,668.69,1.53003847]
[1752092686713,3.3457195,669.74,668.7,1.53003847]
[1752092686911,3.3457195,669.72,668.71,1.53003847]
[1752092687114,3.3457195,669.72,668.72,1.53003847]
[1752092687315,3.3457195,669.74,668.73,1.53003847]
[1752092687515,3.3457195,669.74,668.74,1.53003847]
[1752092687712,3.3457195,669.74,668.75,1.53003847]
[1752092687912,3.3457195,669.73,668.76,1.53003847]
[1752092688117,3.3457195,669.74,668.77,1.53003847]
[1752092688419,3.3457195,669.74,668.78,1.53003847]
[1752092688714,3.3457195,669.72,668.6,2.379]
[1752092689015,3.3457195,669.72,668.61,1.52990681]
[1752092689218,3.3457195,669.69,668.62,1.52990681]
[1752092689418,3.3457195,669.7,668.63,1.52990681]
[1752092689617,3.3457195,669.7,668.64,1.52990681]
[1752092689818,3.3457195,669.7,668.65,1.52990681]
[1752092690018,3.3457195,669.7,668.66,1.52990681]
[1752092690315,3.3457195,669.71,668.67,1.52990681]
[1752092690520,3.3457195,669.7,668.68,1.52990681]
[1752092690715,3.3457195,669.7,668.6,2.379]
[1752092690716,3.3457195,669.7,668.69,1.52990681]
[1752092690917,3.3457195,669.7,668.7,1.52990681]
[1752092691120,3.3457195,669.7,668.71,1.52990681]
[1752092691421,3.3457195,669.7,668.72,1.52990681]
[1752092691721,3.3457195,669.7,668.73,1.52990681]
[1752092692021,3.3457195,669.72,668.74,1.52990681]
[1752092692222,3.3457195,669.76,668.6,2.379]
[1752092692418,3.3457195,669.76,668.61,1.52965707]
[1752092692621,3.3457195,669.76,668.6,2.379]
[1752092692622,3.3457195,669.76,668.62,1.52965707]
[1752092692820,3.3457195,669.77,668.63,1.52965707]
[1752092693123,3.3457195,669.77,668.64,1.52965707]
[1752092693422,3.3457195,669.77,668.65,1.52965707]
[1752092693723,3.3457195,669.77,668.66,1.52965707]
[1752092694018,3.3457195,669.75,668.67,1.52965707]
[1752092694224,3.3457195,669.73,668.68,1.52965707]
[1752092694421,3.3457195,669.74,668.69,1.52965707]
[1752092694619,3.3457195,669.73,668.7,1.52965707]
[1752092694920,3.3457195,669.73,668.71,1.52965707]
[1752092695224,3.3457195,669.74,668.72,1.52965707]
[1752092695421,3.3457195,669.74,668.73,1.52965707]
[1752092695624,3.3457195,669.74,668.74,1.52965707]
[1752092695819,3.3457195,669.74,668.6,2.379]
[1752092696021,3.3457195,669.73,668.61,1.52961188]
[1752092696220,3.3457195,669.72,668.62,1.52961188]
[1752092696420,3.3457195,669.72,668.63,1.52961188]
[1752092696624,3.3457195,669.72,668.64,1.52961188]
[1752092696825,3.3457195,669.72,668.65,1.52961188]
[1752092697026,3.3457195,669.72,668.66,1.52961188]
[1752092697227,3.3457195,669.72,668.67,1.52961188]
[1752092697524,3.3457195,669.72,668.68,1.52961188]
[1752092697730,3.3457195,669.68,668.69,1.52961188]
[1752092697928,3.3457195,669.64,668.7,1.52961188]
[1752092698127,3.3457195,669.6,668.6,2.379]
[1752092698323,3.3457195,669.6,668.61,1.52987568]
[1752092698623,3.3457195,669.57,668.62,1.52987568]
[1752092698825,3.3457195,669.57,668.63,1.52987568]
[1752092699023,3.3457195,669.57,668.64,1.52987568]
[1752092699226,3.3457195,669.56,668.65,1.52987568]
[1752092699423,3.3457195,669.57,668.66,1.52987568]
[1752092699629,3.3457195,669.57,668.6,2.379]
[1752092699828,3.3457195,669.57,668.61,1.53086311]
[1752092700028,3.3457195,669.57,668.62,1.53086311]
[1752092700228,3.3457195,669.57,668.63,1.53086311]
[1752092700426,3.3457195,669.57,668.64,1.53086311]
[1752092700627,3.3457195,669.57,668.65,1.53086311]
[1752092700824,3.3457195,669.57,668.66,1.53086311]
[1752092701028,3.3457195,669.57,668.6,2.379]
[1752092701225,3.3457195,669.58,668.61,1.53081029]
[1752092701428,3.3457195,669.58,668.62,1.53081029]
[1752092701627,3.3457195,669.58,668.63,1.53081029]
[1752092701829,3.3457195,669.58,668.64,1.53081029]
[1752092702125,3.3457195,669.58,668.65,1.53081029]
[1752092702330,3.3457195,669.57,668.66,1.53081029]
[1752092702527,3.3457195,669.57,668.67,1.53081029]
[1752092702827,3.3457195,669.58,668.43,0.26008969]
[1752092703032,3.3457195,669.58,668.44,1.53094936]
[1752092703232,3.3457195,669.58,668.45,1.53094936]
[1752092703528,3.3457195,669.58,668.46,1.53094936]
[1752092703731,3.3457195,669.58,668.47,1.53094936]
[1752092703931,3.3457195,669.58,668.43,0.26008969]
[1752092703932,3.3457195,669.57,668.48,1.53094936]
[1752092704134,3.3457195,669.57,668.49,1.53094936]
[1752092704327,3.3457195,669.56,668.5,1.53094936]
[1752092704532,3.3457195,669.56,668.51,1.53094936]
[1752092704731,3.3457195,669.56,668.52,1.53094936]
[1752092704929,3.3457195,669.56,668.53,1.53094936]
[1752092705128,3.3457195,669.55,668.54,1.53094936]
[1752092705327,3.3457195,669.55,668.55,1.53094936]
[1752092705632,3.3457195,669.54,668.56,1.53094936]
[1752092705831,3.3457195,669.54,668.57,1.53094936]
[1752092706030,3.3457195,669.58,668.58,1.53094936]
[1752092706329,3.3457195,669.71,668.59,1.53094936]
[1752092706633,3.3457195,669.69,668.6,1.53094936]
[1752092706932,3.3457195,669.69,668.61,1.53094936]
[1752092707130,3.3457195,669.69,668.62,1.53094936]
[1752092707333,3.3457195,669.69,668.63,1.53094936]
[1752092707533,3.3457195,669.68,668.64,1.53094936]
[1752092707733,3.3457195,669.66,668.65,1.53094936]
[1752092708033,0.2598935,669.93,668.66,1.53094936]
[1752092708034,3.3457195,669.71,668.66,1.53094936]
[1752092708230,3.3457195,669.71,668.67,1.53094936]
[1752092708433,3.3457195,669.7,668.68,1.53094936]
[1752092708728,3.3457195,669.7,668.69,1.53094936]
[1752092709029,3.3457195,669.7,668.7,1.53094936]
[1752092709231,3.3457195,669.58,668.54,2.69]
[1752092709432,3.3457195,669.56,668.55,1.53340569]
[1752092709633,3.3457195,669.56,668.56,1.53340569]
[1752092709930,3.3457195,669.54,668.57,1.53340569]
[1752092710133,3.3457195,669.54,668.58,1.53340569]
[1752092710331,3.3457195,669.54,668.59,1.53340569]
[1752092710530,3.3457195,669.54,668.6,1.53340569]
[1752092710831,3.3457195,669.54,668.54,2.69]
[1752092711034,3.3457195,669.53,668.55,1.53339993]
[1752092711232,3.3457195,669.52,668.56,1.53339993]
[1752092711431,3.3457195,669.43,668.57,1.53339993]
[1752092711632,3.3457195,669.43,668.58,1.53339993]
[1752092711831,3.3457195,669.4,668.59,1.53339993]
[1752092712030,3.3457195,669.39,668.54,2.69]
[1752092712234,0.2598935,669.93,668.54,2.69]
[1752092712235,3.3457195,669.48,668.55,1.53371454]
[1752092712430,3.3457195,669.47,668.56,1.53371454]
[1752092712634,3.3457195,669.47,668.57,1.53371454]
[1752092712832,3.3457195,669.47,668.54,2.69]
[1752092712833,3.3457195,669.52,668.58,1.53371454]
[1752092713035,3.3457195,669.53,668.54,2.69]
[1752092713230,3.3457195,669.49,668.55,1.53369362]
[1752092713435,3.3457195,669.49,668.56,1.53369362]
[1752092713636,2.23039087,669.27,668.54,2.69]
[1752092715237,2.23039087,669.28,668.54,2.69]
[1752092715637,2.23039087,669.27,668.54,2.69]
[1752092715839,2.23039087,669.36,668.54,2.69]
[1752092716035,2.23039087,669.35,668.54,2.69]
[1752092716235,2.23039087,669.36,668.54,2.69]
[1752092716536,0.2598935,669.93,668.54,2.69]
[1752092716537,2.23039087,669.35,668.54,2.69]
[1752092716939,2.23039087,669.38,668.54,2.69]
[1752092717236,2.23039087,669.35,668.54,2.69]
[1752092717437,2.23039087,669.26,668.54,2.69]
[1752092717637,2.23039087,669.23,668.54,2.69]
[1752092717841,2.23039087,669.12,668.54,2.69]
[1752092718236,2.23039087,669.11,668.54,2.69]
[1752092718439,5.57619918,670.06,668.54,2.69]
[1752092718440,2.23039087,669.13,668.54,2.69]
[1752092718640,2.23039087,669.15,668.54,2.69]
[1752092718941,2.23039087,669.13,668.54,2.69]
[1752092719243,2.23039087,669.12,668.54,2.69]
[1752092719438,2.23039087,669.13,668.54,2.69]
[1752092720436,2.23039087,669.14,668.54,2.69]
[1752092720842,2.23039087,669.18,668.54,2.69]
[1752092721541,2.23039087,669.21,668.54,2.69]
[1752092722239,0.26016649,669.28,668.54,2.69]
[1752092724141,2.23039087,669.25,668.54,2.69]
[1752092724345,2.23039087,669.24,668.54,2.69]
[1752092726741,0.26016649,669.28,668.54,2.69]
[1752092734047,2.49055736,669.28,668.54,2.69]
[1752092734446,2.23039087,669.27,668.54,2.69]
[1752092735448,2.23039087,669.25,668.54,2.69]
[1752092736546,2.23039087,669.24,668.54,2.69]
[1752092738053,2.23039087,669.26,668.54,2.69]
[1752092738354,2.23039087,669.25,668.54,2.69]
[1752092738748,2.23039087,669.21,668.54,2.69]
[1752092740257,2.23039087,669.2,668.54,2.69]
[1752092740957,2.23039087,669.21,668.54,2.69]
[1752092741255,2.23039087,669.2,668.54,2.69]
[1752092742457,2.23039087,669.19,668.54,2.69]
[1752092742954,2.23039087,669.2,668.54,2.69]
[1752092743355,2.23039087,669.19,668.54,2.69]
[1752092743556,0.26016649,669.28,668.55,1.53990108]
[1752092743756,0.26016649,669.28,668.56,1.53990108]
[1752092744055,0.26016649,669.28,668.57,1.53990108]
[1752092744359,0.26016649,669.28,668.58,1.53990108]
[1752092744559,0.26016649,669.28,668.54,2.69]
[1752092744757,0.26016649,669.28,668.55,1.54009789]
[1752092744956,0.26016649,669.28,668.56,1.54009789]
[1752092745160,0.26016649,669.28,668.57,1.54009789]
[1752092745457,0.26016649,669.28,668.58,1.54009789]